[Event "Early-Titled-Tuesday-Blitz-September-12-2023"]
[Site "Chess.com"]
[Date "2023.09.12"]
[Round "10"]
[White "Sanan_Sjugirov"]
[Black "Egor_Koshulyan"]
[Result "1-0"]
[WhiteElo "2932"]
[BlackElo "2748"]
[TimeControl "180+1"]
[EndTime "9:57:27 PDT"]
[Termination "Sanan_Sjugirov won by resignation"]

1. e4 {[%clk 0:02:56.9]} 1... c5 {[%clk 0:03:00.3]} 2. Nf3 {[%clk 0:02:55.8]}
2... Nc6 {[%clk 0:03:00.6]} 3. Bb5 {[%clk 0:02:55.6]} 3... g5 {[%clk 0:03:01]}
4. h3 {[%clk 0:02:50.6]} 4... Nf6 {[%clk 0:03:00.8]} 5. e5 {[%clk 0:02:39.7]}
5... g4 {[%clk 0:03:00.8]} 6. exf6 {[%clk 0:02:31.5]} 6... gxf3 {[%clk
0:03:00.3]} 7. Bxc6 {[%clk 0:02:30.6]} 7... dxc6 {[%clk 0:02:39]} 8. Qxf3 {[%clk
0:02:30.7]} 8... Be6 {[%clk 0:02:39.6]} 9. Nc3 {[%clk 0:02:28.7]} 9... Qd7
{[%clk 0:02:27.8]} 10. d3 {[%clk 0:02:25.7]} 10... O-O-O {[%clk 0:02:27.6]} 11.
fxe7 {[%clk 0:02:15.4]} 11... Qxe7 {[%clk 0:02:20.7]} 12. Be3 {[%clk 0:02:15.2]}
12... Bg7 {[%clk 0:02:20.8]} 13. O-O {[%clk 0:01:49.9]} 13... Bxc3 {[%clk
0:00:51.9]} 14. bxc3 {[%clk 0:01:49.4]} 14... Bd5 {[%clk 0:00:49.4]} 15. Qf5+
{[%clk 0:01:47]} 15... Kb8 {[%clk 0:00:46.6]} 16. c4 {[%clk 0:01:42.2]} 16...
Be6 {[%clk 0:00:47]} 17. Qxc5 {[%clk 0:01:35.2]} 17... Qxc5 {[%clk 0:00:47.7]}
18. Bxc5 {[%clk 0:01:35.8]} 18... Rhg8 {[%clk 0:00:48.6]} 19. Kh2 {[%clk
0:01:34.5]} 19... Rde8 {[%clk 0:00:45.4]} 20. Rfe1 {[%clk 0:01:30.9]} 20... Bf5
{[%clk 0:00:44.8]} 21. g4 {[%clk 0:01:28.9]} 21... Bg6 {[%clk 0:00:44.2]} 22.
Kg3 {[%clk 0:01:27.4]} 22... f5 {[%clk 0:00:36.9]} 23. f3 {[%clk 0:01:26.9]}
23... fxg4 {[%clk 0:00:35.6]} 24. hxg4 {[%clk 0:01:26.7]} 24... h5 {[%clk
0:00:35.7]} 25. Rxe8+ {[%clk 0:01:22]} 25... Bxe8 {[%clk 0:00:32.7]} 26. Kf4
{[%clk 0:01:16.6]} 26... hxg4 {[%clk 0:00:32.8]} 27. fxg4 {[%clk 0:01:17.5]}
27... Kc7 {[%clk 0:00:30.6]} 28. Re1 {[%clk 0:01:15.2]} 28... b6 {[%clk
0:00:30.3]} 29. Be7 {[%clk 0:01:14.7]} 29... Bg6 {[%clk 0:00:26.5]} 30. g5
{[%clk 0:01:13.6]} 30... Re8 {[%clk 0:00:23.6]} 31. Re6 {[%clk 0:01:05.5]} 31...
Bf7 {[%clk 0:00:22.2]} 32. Bd6+ {[%clk 0:00:58.2]} 32... Kd7 {[%clk 0:00:22.5]}
33. Rxe8 {[%clk 0:00:58.4]} 33... Bxe8 {[%clk 0:00:23.4]} 34. Bb8 {[%clk
0:00:58.9]} 34... a6 {[%clk 0:00:20.8]} 35. Kf5 {[%clk 0:00:59]} 35... Ke7
{[%clk 0:00:20]} 36. g6 {[%clk 0:00:57.4]} 36... Bd7+ {[%clk 0:00:20.1]} 37. Ke5
{[%clk 0:00:57.2]} 37... Kf8 {[%clk 0:00:15.2]} 38. Kf6 {[%clk 0:00:47.5]} 38...
b5 {[%clk 0:00:08.9]} 39. c5 {[%clk 0:00:45.3]} 39... Bg4 {[%clk 0:00:06.8]} 40.
a3 {[%clk 0:00:41.5]} 40... a5 {[%clk 0:00:07]} 41. c3 {[%clk 0:00:40.5]} 41...
a4 {[%clk 0:00:05.3]} 42. Be5 {[%clk 0:00:30]} 42... Bf3 {[%clk 0:00:05.1]} 43.
Ke6 {[%clk 0:00:28.8]} 43... Kg8 {[%clk 0:00:02.8]} 44. Kd6 {[%clk 0:00:28.8]}
44... Bg2 {[%clk 0:00:03.5]} 45. Kc7 {[%clk 0:00:25.2]} 45... Bf3 {[%clk
0:00:04.1]} 46. Kb6 {[%clk 0:00:25.4]} 46... Bg2 {[%clk 0:00:03.9]} 47. Ka5
{[%clk 0:00:25.7]} 47... Bf3 {[%clk 0:00:03.5]} 48. Kb4 {[%clk 0:00:21.5]} 48...
Bd1 {[%clk 0:00:02.8]} 49. Ka5 {[%clk 0:00:19.1]} 49... Be2 {[%clk 0:00:02.5]}
50. Kb6 {[%clk 0:00:18.2]} 50... Bf3 {[%clk 0:00:03]} 51. Bf6 {[%clk 0:00:16.8]}
51... Kf8 {[%clk 0:00:02.9]} 52. Bd4 {[%clk 0:00:15.1]} 52... Kg8 {[%clk
0:00:03.4]} 53. Ka5 {[%clk 0:00:12.4]} 53... Be2 {[%clk 0:00:03.5]} 54. Kb6
{[%clk 0:00:11.2]} 54... Bf3 {[%clk 0:00:03.6]} 55. Bf6 {[%clk 0:00:11.3]} 55...
Kf8 {[%clk 0:00:02.8]} 56. g7+ {[%clk 0:00:12.2]} 56... Kg8 {[%clk 0:00:03.2]}
57. Kc7 {[%clk 0:00:07.8]} 57... Bd5 {[%clk 0:00:02.8]} 58. Kd6 {[%clk
0:00:07.3]} 58... Bf3 {[%clk 0:00:03.2]} 59. Ke5 {[%clk 0:00:07.8]} 59... Bd5
{[%clk 0:00:02.9]} 60. Kd4 {[%clk 0:00:08.4]} 60... Bf3 {[%clk 0:00:02.7]} 61.
c4 {[%clk 0:00:08.1]} 61... bxc4 {[%clk 0:00:02.3]} 62. Kxc4 {[%clk 0:00:09]}
62... Bd1 {[%clk 0:00:02.5]} 63. Kb4 {[%clk 0:00:08.1]} 63... Bb3 {[%clk
0:00:03.1]} 64. Ka5 {[%clk 0:00:08.5]} 64... Kf7 {[%clk 0:00:02.9]} 65. Bb2
{[%clk 0:00:06.9]} 65... Ke7 {[%clk 0:00:01.7]} 66. Be5 {[%clk 0:00:05.5]} 66...
Kf7 {[%clk 0:00:01.7]} 67. d4 {[%clk 0:00:04.9]} 67... Kg8 {[%clk 0:00:01.4]}
68. d5 {[%clk 0:00:04.7]} 68... cxd5 {[%clk 0:00:01]} 69. c6 {[%clk 0:00:05.1]}
69... Kf7 {[%clk 0:00:01.9]} 70. c7 {[%clk 0:00:05.4]} 70... d4 {[%clk
0:00:02.4]} 71. c8=Q {[%clk 0:00:05.7]} 1-0

[Event "Early-Titled-Tuesday-Blitz-September-12-2023"]
[Site "Chess.com"]
[Date "2023.09.12"]
[Round "10"]
[White "wqws"]
[Black "AttilaTurzo"]
[Result "0-1"]
[WhiteElo "2650"]
[BlackElo "2478"]
[TimeControl "180+1"]
[EndTime "9:57:36 PDT"]
[Termination "AttilaTurzo won by checkmate"]

1. e4 {[%clk 0:03:00.4]} 1... c5 {[%clk 0:02:59.7]} 2. Nf3 {[%clk 0:03:01]} 2...
d6 {[%clk 0:02:59.9]} 3. d4 {[%clk 0:03:01.9]} 3... cxd4 {[%clk 0:03:00.6]} 4.
Nxd4 {[%clk 0:03:02.7]} 4... Nf6 {[%clk 0:03:01.2]} 5. Nc3 {[%clk 0:03:03.4]}
5... a6 {[%clk 0:03:01.9]} 6. Bg5 {[%clk 0:03:03.4]} 6... e6 {[%clk 0:03:00.2]}
7. f4 {[%clk 0:03:04]} 7... Be7 {[%clk 0:03:00.1]} 8. Qf3 {[%clk 0:03:04.6]}
8... Qc7 {[%clk 0:02:57.6]} 9. O-O-O {[%clk 0:03:05.1]} 9... Nbd7 {[%clk
0:02:57.9]} 10. Bd3 {[%clk 0:03:05.6]} 10... O-O {[%clk 0:02:48.5]} 11. g4
{[%clk 0:03:02.2]} 11... b5 {[%clk 0:02:43.1]} 12. h4 {[%clk 0:03:02.1]} 12...
Bb7 {[%clk 0:02:43.3]} 13. Kb1 {[%clk 0:03:01.6]} 13... b4 {[%clk 0:02:40.5]}
14. Nce2 {[%clk 0:03:01.4]} 14... Nc5 {[%clk 0:02:40.5]} 15. Ng3 {[%clk
0:03:01.2]} 15... Rfe8 {[%clk 0:02:34.9]} 16. Nde2 {[%clk 0:02:46.5]} 16... d5
{[%clk 0:02:29.1]} 17. Bxf6 {[%clk 0:02:44.3]} 17... dxe4 {[%clk 0:02:22.3]} 18.
Nxe4 {[%clk 0:02:29.3]} 18... Bxf6 {[%clk 0:02:22.5]} 19. g5 {[%clk 0:02:23.8]}
19... Be7 {[%clk 0:02:19.2]} 20. Rhg1 {[%clk 0:02:23.7]} 20... Rad8 {[%clk
0:02:00.6]} 21. Nf6+ {[%clk 0:01:57.8]} 21... Bxf6 {[%clk 0:01:56]} 22. gxf6
{[%clk 0:01:57.9]} 22... g6 {[%clk 0:01:45.5]} 23. Qh5 {[%clk 0:01:51.6]} 23...
Kh8 {[%clk 0:01:08.2]} 24. Qh6 {[%clk 0:01:38.4]} 24... Rg8 {[%clk 0:01:07.9]}
25. h5 {[%clk 0:01:03.9]} 25... Nxd3 {[%clk 0:01:05.5]} 26. cxd3 {[%clk
0:01:03.2]} 26... Bf3 {[%clk 0:00:54.1]} 27. hxg6 {[%clk 0:00:27.8]} 27... Rxg6
{[%clk 0:00:41]} 28. Rxg6 {[%clk 0:00:26.5]} 28... fxg6 {[%clk 0:00:41.9]} 29.
Qh2 {[%clk 0:00:22.1]} 29... Rf8 {[%clk 0:00:35.2]} 30. Re1 {[%clk 0:00:15.9]}
30... Bxe2 {[%clk 0:00:30.1]} 31. Qxe2 {[%clk 0:00:14.6]} 31... Rxf6 {[%clk
0:00:29.5]} 32. Qe4 {[%clk 0:00:12]} 32... Qxf4 {[%clk 0:00:27.9]} 33. Qa8+
{[%clk 0:00:12.2]} 33... Rf8 {[%clk 0:00:25.8]} 34. Qxa6 {[%clk 0:00:12.2]}
34... e5 {[%clk 0:00:18]} 35. Qd6 {[%clk 0:00:11.7]} 35... Re8 {[%clk 0:00:15]}
36. d4 {[%clk 0:00:09.9]} 36... Qf5+ {[%clk 0:00:12.8]} 37. Ka1 {[%clk
0:00:09.4]} 37... e4 {[%clk 0:00:13.4]} 38. d5 {[%clk 0:00:08.7]} 38... Qe5
{[%clk 0:00:12.2]} 39. Qc6 {[%clk 0:00:07.9]} 39... e3 {[%clk 0:00:12.1]} 40. d6
{[%clk 0:00:08.3]} 40... e2 {[%clk 0:00:11.4]} 41. d7 {[%clk 0:00:08.2]} 41...
Rd8 {[%clk 0:00:11.8]} 42. Qc8 {[%clk 0:00:07.6]} 42... Qe7 {[%clk 0:00:10.6]}
43. Rxe2 {[%clk 0:00:06.3]} 43... Qxd7 {[%clk 0:00:10.5]} 44. Qxd7 {[%clk
0:00:05.1]} 44... Rxd7 {[%clk 0:00:11.2]} 45. Kb1 {[%clk 0:00:05.8]} 45... Rd4
{[%clk 0:00:10]} 46. Kc2 {[%clk 0:00:05.1]} 46... h5 {[%clk 0:00:10.4]} 47. Kb3
{[%clk 0:00:05]} 47... Kg7 {[%clk 0:00:10.5]} 48. a4 {[%clk 0:00:03.9]} 48...
bxa3 {[%clk 0:00:10.1]} 49. bxa3 {[%clk 0:00:04.3]} 49... h4 {[%clk 0:00:10.5]}
50. a4 {[%clk 0:00:04.9]} 50... g5 {[%clk 0:00:11]} 51. a5 {[%clk 0:00:05.5]}
51... Rd1 {[%clk 0:00:08.9]} 52. a6 {[%clk 0:00:05.2]} 52... Rb1+ {[%clk
0:00:08.7]} 53. Rb2 {[%clk 0:00:04.9]} 53... Re1 {[%clk 0:00:03]} 54. a7 {[%clk
0:00:04.8]} 54... Re8 {[%clk 0:00:03]} 55. Kc4 {[%clk 0:00:05.2]} 55... Ra8
{[%clk 0:00:03.1]} 56. Rb7+ {[%clk 0:00:04.4]} 56... Kg6 {[%clk 0:00:03.2]} 57.
Kb5 {[%clk 0:00:04.9]} 57... g4 {[%clk 0:00:03.3]} 58. Kb6 {[%clk 0:00:04.8]}
58... g3 {[%clk 0:00:03.8]} 59. Rb8 {[%clk 0:00:05.2]} 59... Rxa7 {[%clk
0:00:04.4]} 60. Kxa7 {[%clk 0:00:05.7]} 60... Kf5 {[%clk 0:00:02.2]} 61. Kb6
{[%clk 0:00:05.7]} 61... h3 {[%clk 0:00:02.1]} 62. Rh8 {[%clk 0:00:05]} 62... h2
{[%clk 0:00:02.2]} 63. Kc5 {[%clk 0:00:05.1]} 63... g2 {[%clk 0:00:02.4]} 64.
Rf8+ {[%clk 0:00:04.9]} 64... Ke4 {[%clk 0:00:02.1]} 65. Re8+ {[%clk 0:00:04.6]}
65... Kd3 {[%clk 0:00:01.9]} 66. Rd8+ {[%clk 0:00:05.1]} 66... Kc3 {[%clk
0:00:01.8]} 67. Kb5 {[%clk 0:00:05.4]} 67... g1=Q {[%clk 0:00:02.7]} 68. Rc8+
{[%clk 0:00:05.9]} 68... Kb3 {[%clk 0:00:02]} 69. Rd8 {[%clk 0:00:06.3]} 69...
h1=Q {[%clk 0:00:02.4]} 70. Rd3+ {[%clk 0:00:06.3]} 70... Kc2 {[%clk 0:00:03]}
71. Ra3 {[%clk 0:00:05.9]} 71... Qg5+ {[%clk 0:00:03.4]} 72. Kb4 {[%clk
0:00:06.1]} 72... Qhh4# {[%clk 0:00:03.8]} 0-1

[Event "Early-Titled-Tuesday-Blitz-September-12-2023"]
[Site "Chess.com"]
[Date "2023.09.12"]
[Round "10"]
[White "Viacheslav92"]
[Black "tylityli"]
[Result "0-1"]
[WhiteElo "2487"]
[BlackElo "2334"]
[TimeControl "180+1"]
[EndTime "9:57:41 PDT"]
[Termination "tylityli won on time"]

1. e4 {[%clk 0:03:00.9]} 1... e5 {[%clk 0:02:57.4]} 2. Nf3 {[%clk 0:02:49.5]}
2... Nc6 {[%clk 0:02:57.3]} 3. Bb5 {[%clk 0:02:46.2]} 3... a6 {[%clk 0:02:56.8]}
4. Bxc6 {[%clk 0:02:46.1]} 4... dxc6 {[%clk 0:02:56.4]} 5. O-O {[%clk 0:02:47]}
5... Ne7 {[%clk 0:02:55.3]} 6. d4 {[%clk 0:02:46.1]} 6... exd4 {[%clk
0:02:54.9]} 7. Qxd4 {[%clk 0:02:47]} 7... Qxd4 {[%clk 0:02:54.4]} 8. Nxd4 {[%clk
0:02:47.9]} 8... Bd7 {[%clk 0:02:54.9]} 9. Nc3 {[%clk 0:02:45.6]} 9... O-O-O
{[%clk 0:02:55]} 10. Be3 {[%clk 0:02:45.7]} 10... Ng6 {[%clk 0:02:52.3]} 11.
Rfd1 {[%clk 0:02:44.8]} 11... f6 {[%clk 0:02:52.1]} 12. f3 {[%clk 0:02:44.2]}
12... Bd6 {[%clk 0:02:51.6]} 13. Nb3 {[%clk 0:02:37.7]} 13... h5 {[%clk
0:02:50.2]} 14. Nc5 {[%clk 0:02:34.2]} 14... h4 {[%clk 0:02:45.8]} 15. Nxd7
{[%clk 0:02:33]} 15... Rxd7 {[%clk 0:02:43.3]} 16. h3 {[%clk 0:02:31]} 16...
Rhd8 {[%clk 0:02:41.1]} 17. Kf1 {[%clk 0:02:31.3]} 17... Ne5 {[%clk 0:02:33.9]}
18. b3 {[%clk 0:02:26]} 18... Bb4 {[%clk 0:02:31.4]} 19. Rxd7 {[%clk 0:02:26.9]}
19... Rxd7 {[%clk 0:02:31.2]} 20. Ne2 {[%clk 0:02:22.5]} 20... Bd2 {[%clk
0:02:22.3]} 21. Kf2 {[%clk 0:02:17.9]} 21... g5 {[%clk 0:02:17]} 22. Nd4 {[%clk
0:02:13.3]} 22... Bc3 {[%clk 0:02:08.1]} 23. Rd1 {[%clk 0:02:07.3]} 23... c5
{[%clk 0:02:05.6]} 24. Ne2 {[%clk 0:01:45.2]} 24... Rxd1 {[%clk 0:02:02.9]} 25.
Nxc3 {[%clk 0:01:45.8]} 25... Rd7 {[%clk 0:01:50.3]} 26. Nd5 {[%clk 0:01:43.7]}
26... Rf7 {[%clk 0:01:38.8]} 27. Bxc5 {[%clk 0:01:40.4]} 27... b6 {[%clk
0:01:39.2]} 28. Be3 {[%clk 0:01:35.5]} 28... Kd7 {[%clk 0:01:38.2]} 29. Ke2
{[%clk 0:01:32.5]} 29... Ke6 {[%clk 0:01:37]} 30. Bd4 {[%clk 0:01:31.3]} 30...
Rd7 {[%clk 0:01:34.3]} 31. Bc3 {[%clk 0:01:23.9]} 31... b5 {[%clk 0:01:30.3]}
32. Bb4 {[%clk 0:00:57.1]} 32... c6 {[%clk 0:01:23.5]} 33. Ne3 {[%clk
0:00:43.8]} 33... Rc7 {[%clk 0:01:18.1]} 34. Bc3 {[%clk 0:00:32.1]} 34... Ng6
{[%clk 0:01:17.9]} 35. Nf5 {[%clk 0:00:28.2]} 35... Nf4+ {[%clk 0:01:17.8]} 36.
Kf2 {[%clk 0:00:28.9]} 36... c5 {[%clk 0:01:17.4]} 37. Bd2 {[%clk 0:00:26.5]}
37... Ng6 {[%clk 0:01:08.4]} 38. Be3 {[%clk 0:00:26.9]} 38... Ne5 {[%clk
0:01:05.7]} 39. Ke2 {[%clk 0:00:26.4]} 39... a5 {[%clk 0:01:03.1]} 40. Kd2
{[%clk 0:00:24.7]} 40... a4 {[%clk 0:01:01.3]} 41. Kc3 {[%clk 0:00:21.5]} 41...
b4+ {[%clk 0:00:59.9]} 42. Kd2 {[%clk 0:00:19.6]} 42... a3 {[%clk 0:00:56.6]}
43. Ke2 {[%clk 0:00:19]} 43... Nd7 {[%clk 0:00:52.7]} 44. Kd3 {[%clk 0:00:17.9]}
44... Nb6 {[%clk 0:00:51.8]} 45. Ke2 {[%clk 0:00:17.2]} 45... Nc8 {[%clk
0:00:47.5]} 46. Kd3 {[%clk 0:00:17.3]} 46... Nd6 {[%clk 0:00:47.6]} 47. Nxd6
{[%clk 0:00:16.2]} 47... Kxd6 {[%clk 0:00:47.6]} 48. Kc4 {[%clk 0:00:16.8]}
48... Rc8 {[%clk 0:00:44.1]} 49. c3 {[%clk 0:00:15.7]} 49... bxc3 {[%clk
0:00:40.3]} 50. Kxc3 {[%clk 0:00:16.6]} 50... Kc6 {[%clk 0:00:38.6]} 51. Kc4
{[%clk 0:00:17]} 51... Kd6 {[%clk 0:00:38.1]} 52. Bf2 {[%clk 0:00:16.4]} 52...
Rc6 {[%clk 0:00:36.3]} 53. Be3 {[%clk 0:00:16.7]} 53... Rc8 {[%clk 0:00:34.5]}
54. Bf2 {[%clk 0:00:16.9]} 54... Ke5 {[%clk 0:00:32.6]} 55. Be3 {[%clk
0:00:17.1]} 55... f5 {[%clk 0:00:31.5]} 56. Bxg5 {[%clk 0:00:14.8]} 56... fxe4
{[%clk 0:00:31.6]} 57. fxe4 {[%clk 0:00:15.7]} 57... Rg8 {[%clk 0:00:28.8]} 58.
Bxh4 {[%clk 0:00:07.9]} 58... Rxg2 {[%clk 0:00:28.9]} 59. Be7 {[%clk 0:00:08.6]}
59... Rxa2 {[%clk 0:00:27.8]} 60. Bxc5 {[%clk 0:00:09.4]} 60... Kxe4 {[%clk
0:00:27]} 61. b4 {[%clk 0:00:09]} 61... Rb2 {[%clk 0:00:22.3]} 62. Bd4 {[%clk
0:00:09.2]} 62... Rc2+ {[%clk 0:00:21.8]} 63. Kb3 {[%clk 0:00:07.7]} 63... Rh2
{[%clk 0:00:19.1]} 64. Ba1 {[%clk 0:00:04.9]} 64... Rxh3+ {[%clk 0:00:18.9]} 65.
Ka4 {[%clk 0:00:05.4]} 65... a2 {[%clk 0:00:18.3]} 66. b5 {[%clk 0:00:05.1]}
66... Kd5 {[%clk 0:00:16.8]} 67. Kb4 {[%clk 0:00:04.2]} 67... Rf3 {[%clk
0:00:13.5]} 68. Ka5 {[%clk 0:00:03.9]} 68... Kc5 {[%clk 0:00:13.5]} 69. Ka4
{[%clk 0:00:03.5]} 69... Kc4 {[%clk 0:00:11]} 70. b6 {[%clk 0:00:03.3]} 70...
Rb3 {[%clk 0:00:07.9]} 71. Ka5 {[%clk 0:00:02.4]} 71... Rb1 {[%clk 0:00:07.3]}
72. Be5 {[%clk 0:00:01.6]} 72... a1=Q+ {[%clk 0:00:05.9]} 0-1

[Event "Early-Titled-Tuesday-Blitz-September-12-2023"]
[Site "Chess.com"]
[Date "2023.09.12"]
[Round "10"]
[White "Hikaru"]
[Black "LevonAronian"]
[Result "0-1"]
[WhiteElo "3226"]
[BlackElo "3072"]
[TimeControl "180+1"]
[EndTime "9:57:49 PDT"]
[Termination "LevonAronian won by resignation"]

1. a3 {[%clk 0:03:00.9]} 1... g6 {[%clk 0:02:58.8]} 2. e4 {[%clk 0:02:58.8]}
2... c5 {[%clk 0:02:57.5]} 3. Nf3 {[%clk 0:02:50.1]} 3... Bg7 {[%clk 0:02:57.5]}
4. d4 {[%clk 0:02:50.6]} 4... cxd4 {[%clk 0:02:57.2]} 5. Nxd4 {[%clk 0:02:51.5]}
5... Nc6 {[%clk 0:02:57.3]} 6. Nb3 {[%clk 0:02:50.5]} 6... b6 {[%clk 0:02:44.1]}
7. c4 {[%clk 0:02:45.5]} 7... Ba6 {[%clk 0:02:38.4]} 8. Ra2 {[%clk 0:02:39.2]}
8... Rc8 {[%clk 0:02:35.1]} 9. N3d2 {[%clk 0:02:37.8]} 9... e6 {[%clk
0:02:26.2]} 10. b4 {[%clk 0:02:30.2]} 10... Bb7 {[%clk 0:02:26.3]} 11. Bb2
{[%clk 0:02:29.2]} 11... Bxb2 {[%clk 0:02:25.6]} 12. Rxb2 {[%clk 0:02:30.1]}
12... Nf6 {[%clk 0:02:23.9]} 13. c5 {[%clk 0:02:24]} 13... O-O {[%clk
0:02:21.3]} 14. Be2 {[%clk 0:02:07.9]} 14... bxc5 {[%clk 0:02:16.2]} 15. bxc5
{[%clk 0:02:07.9]} 15... Na5 {[%clk 0:02:15.3]} 16. Bf3 {[%clk 0:01:43.3]} 16...
Rxc5 {[%clk 0:02:10.8]} 17. O-O {[%clk 0:01:43.9]} 17... d5 {[%clk 0:02:06]} 18.
exd5 {[%clk 0:01:34]} 18... Bxd5 {[%clk 0:02:05.3]} 19. Qa4 {[%clk 0:01:34.6]}
19... Nc4 {[%clk 0:01:46.9]} 20. Nxc4 {[%clk 0:01:32.2]} 20... Rxc4 {[%clk
0:01:45.8]} 21. Qb5 {[%clk 0:01:21.3]} 21... Qc7 {[%clk 0:01:35.1]} 22. Bxd5
{[%clk 0:01:20.5]} 22... Nxd5 {[%clk 0:01:34.6]} 23. Nd2 {[%clk 0:01:21.2]}
23... Rc3 {[%clk 0:01:24.4]} 24. a4 {[%clk 0:01:17.5]} 24... Rd8 {[%clk
0:01:19.6]} 25. Nf3 {[%clk 0:01:15.1]} 25... Kg7 {[%clk 0:01:12.3]} 26. h3
{[%clk 0:01:09.9]} 26... h6 {[%clk 0:01:10.5]} 27. Re1 {[%clk 0:01:04.3]} 27...
Rc1 {[%clk 0:01:07.2]} 28. Rb1 {[%clk 0:00:59.3]} 28... Rxe1+ {[%clk 0:01:01.4]}
29. Rxe1 {[%clk 0:01:00.2]} 29... Rb8 {[%clk 0:01:00.7]} 30. Qe2 {[%clk
0:00:58.8]} 30... Qc3 {[%clk 0:00:58.8]} 31. Rd1 {[%clk 0:00:47.9]} 31... Rb2
{[%clk 0:00:57.8]} 32. Qa6 {[%clk 0:00:47.7]} 32... Qc5 {[%clk 0:00:52.3]} 33.
Rf1 {[%clk 0:00:48]} 33... Nf4 {[%clk 0:00:50]} 34. h4 {[%clk 0:00:36.7]} 34...
e5 {[%clk 0:00:49.7]} 35. Nh2 {[%clk 0:00:32.2]} 35... Qd5 {[%clk 0:00:44.4]}
36. Nf3 {[%clk 0:00:29.2]} 36... e4 {[%clk 0:00:44]} 37. Nh2 {[%clk 0:00:21.2]}
37... e3 {[%clk 0:00:42.2]} 38. Nf3 {[%clk 0:00:21.7]} 38... Qc5 {[%clk
0:00:33.9]} 39. Kh2 {[%clk 0:00:15.4]} 39... Rxf2 {[%clk 0:00:32.9]} 40. Rxf2
{[%clk 0:00:12.8]} 40... exf2 {[%clk 0:00:33.1]} 41. Nd2 {[%clk 0:00:13]} 41...
Qe3 {[%clk 0:00:28.1]} 42. Nf1 {[%clk 0:00:12.2]} 42... Qe4 {[%clk 0:00:23.7]}
43. Kg3 {[%clk 0:00:12.4]} 43... g5 {[%clk 0:00:19]} 44. hxg5 {[%clk 0:00:12.4]}
44... hxg5 {[%clk 0:00:19]} 45. Kxf2 {[%clk 0:00:12.5]} 45... Qxg2+ {[%clk
0:00:19.2]} 46. Ke3 {[%clk 0:00:12.9]} 46... Qd5 {[%clk 0:00:13.7]} 47. Kf2
{[%clk 0:00:10.9]} 47... Qa2+ {[%clk 0:00:12.1]} 48. Kf3 {[%clk 0:00:09.4]}
48... Qd5+ {[%clk 0:00:10.6]} 49. Kf2 {[%clk 0:00:09.8]} 49... Qd4+ {[%clk
0:00:10.4]} 50. Kf3 {[%clk 0:00:09.9]} 50... Nd5 {[%clk 0:00:10.7]} 51. Qd6
{[%clk 0:00:07]} 51... Qf4+ {[%clk 0:00:10.4]} 52. Qxf4 {[%clk 0:00:07.3]} 52...
Nxf4 {[%clk 0:00:11.1]} 53. Ne3 {[%clk 0:00:07.6]} 53... Kf6 {[%clk 0:00:11.1]}
54. Ke4 {[%clk 0:00:08.2]} 54... Ke6 {[%clk 0:00:10.6]} 55. a5 {[%clk
0:00:08.9]} 55... Ng6 {[%clk 0:00:09.8]} 56. Nf5 {[%clk 0:00:08.6]} 56... Ne7
{[%clk 0:00:09.4]} 57. Nd4+ {[%clk 0:00:09.4]} 57... Kd7 {[%clk 0:00:09.4]} 58.
a6 {[%clk 0:00:06.9]} 58... g4 {[%clk 0:00:07.6]} 59. Nb5 {[%clk 0:00:06.4]}
59... f5+ {[%clk 0:00:07.3]} 60. Kf4 {[%clk 0:00:07]} 60... Nc6 {[%clk
0:00:05.7]} 61. Nc3 {[%clk 0:00:07.3]} 61... Nd4 {[%clk 0:00:05.6]} 62. Ke5
{[%clk 0:00:06.1]} 62... Nf3+ {[%clk 0:00:04.2]} 63. Kf4 {[%clk 0:00:05.6]}
63... Kc6 {[%clk 0:00:04.1]} 64. Ne2 {[%clk 0:00:05.5]} 64... Nh4 {[%clk
0:00:04.4]} 65. Kg5 {[%clk 0:00:05.3]} 65... Nf3+ {[%clk 0:00:02.4]} 66. Kxf5
{[%clk 0:00:05.8]} 66... Nh2 {[%clk 0:00:03.2]} 67. Kf4 {[%clk 0:00:05]} 67...
Kb5 {[%clk 0:00:03.8]} 68. Kg3 {[%clk 0:00:05.6]} 68... Nf1+ {[%clk 0:00:04.3]}
69. Kxg4 {[%clk 0:00:06]} 69... Kxa6 {[%clk 0:00:04.9]} 70. Kf4 {[%clk
0:00:06.8]} 70... Kb5 {[%clk 0:00:05.4]} 71. Ke4 {[%clk 0:00:07.4]} 71... Kc4
{[%clk 0:00:06.1]} 72. Nd4 {[%clk 0:00:04.4]} 72... a5 {[%clk 0:00:06.3]} 73.
Nf5 {[%clk 0:00:05]} 73... a4 {[%clk 0:00:06]} 74. Nd6+ {[%clk 0:00:05.7]} 74...
Kc3 {[%clk 0:00:02.6]} 75. Kd5 {[%clk 0:00:05.4]} 75... Ne3+ {[%clk 0:00:01.8]}
76. Ke4 {[%clk 0:00:05.8]} 76... Nc2 {[%clk 0:00:01.5]} 77. Kf3 {[%clk
0:00:05.3]} 77... Kb4 {[%clk 0:00:01.3]} 78. Ke2 {[%clk 0:00:02]} 78... a3
{[%clk 0:00:01.7]} 79. Kd2 {[%clk 0:00:02.9]} 79... a2 {[%clk 0:00:02.3]} 80.
Kxc2 {[%clk 0:00:03.8]} 80... a1=Q {[%clk 0:00:03]} 81. Kd3 {[%clk 0:00:04.3]}
81... Qa2 {[%clk 0:00:03.6]} 82. Ke4 {[%clk 0:00:05.2]} 82... Qb3 {[%clk
0:00:04.2]} 83. Ke5 {[%clk 0:00:05.5]} 83... Kc5 {[%clk 0:00:04.7]} 84. Ne4+
{[%clk 0:00:06]} 84... Kc6 {[%clk 0:00:05.3]} 85. Kd4 {[%clk 0:00:06.5]} 85...
Qb4+ {[%clk 0:00:05.7]} 86. Ke3 {[%clk 0:00:07.4]} 86... Kd5 {[%clk 0:00:06.1]}
87. Nd2 {[%clk 0:00:07.8]} 87... Qc3+ {[%clk 0:00:06.2]} 88. Ke2 {[%clk
0:00:08.3]} 88... Kd4 {[%clk 0:00:06.7]} 89. Nf3+ {[%clk 0:00:08.9]} 89... Ke4
{[%clk 0:00:07.3]} 90. Nd2+ {[%clk 0:00:09]} 90... Kf4 {[%clk 0:00:07.8]} 91.
Kd1 {[%clk 0:00:09.8]} 91... Qd3 {[%clk 0:00:08]} 92. Kc1 {[%clk 0:00:10.3]}
92... Ke3 {[%clk 0:00:08.6]} 93. Nb1 {[%clk 0:00:11.2]} 93... Qc4+ {[%clk
0:00:08.6]} 0-1